bitfinex/quotes_ETHUSD_20230113
["timestamp","ask_amount","ask_price","bid_price","bid_amount"]
[1673597806179,0.20102083,1409.0,1408.9,30.71669593]
[1673597806391,0.20102083,1409.0,1408.9,34.66349643]
[1673597806632,0.20102083,1409.0,1408.9,36.74951195]
[1673597817111,0.20102083,1409.0,1408.9,35.6927882]
[1673597820421,0.20102083,1409.0,1408.9,36.74951195]
[1673597821791,0.20102083,1409.0,1408.9,32.80271145]
[1673597822528,0.20102083,1409.0,1408.9,30.71669593]
[1673597823735,0.20102083,1409.0,1408.9,30.71869593]
[1673597823945,0.20102083,1409.0,1408.9,29.65997218]
[1673597824500,1.26437287,1409.0,1408.9,4.76044946]
[1673597824710,3.16156821,1409.0,1408.8,0.066]
[1673597824898,5.88959413,1408.9,1408.6,10.42121277]
[1673597825107,5.98859413,1408.9,1408.7,1.76076576]
[1673597825350,13.08639413,1408.9,1408.6,4.72905647]
[1673597825550,0.59885941,1408.8,1408.5,2.71021277]
[1673597825774,2.59885941,1408.8,1408.6,1.76083747]
[1673597825990,0.25988594,1408.7,1408.5,2.71021277]
[1673597826304,0.59885941,1408.8,1408.6,1.76084882]
[1673597826521,0.59885941,1408.8,1408.6,2.81757257]
[1673597828669,0.59885941,1408.8,1408.6,9.91672257]
[1673597828914,15.05405468,1408.9,1408.7,1.76084882]
[1673597829319,15.05405468,1408.9,1408.6,8.22187375]
[1673597829557,15.05405468,1408.9,1408.7,1.76076995]
[1673597829767,11.60630153,1408.9,1408.6,22.42026375]
[1673597830099,16.520148,1408.9,1408.7,1.76076263]
[1673597831246,16.520148,1408.9,1408.6,22.42026375]
[1673597831553,16.520148,1408.9,1408.6,22.35426375]
[1673597831722,11.60257291,1408.9,1408.7,5.60633272]
[1673597831928,11.58801236,1408.9,1408.8,7.09823]
[1673597832868,0.09911236,1408.9,1408.8,7.09823]
[1673597833083,0.00011236,1408.9,1408.8,7.09823]
[1673597833521,0.00011236,1408.9,1408.8,9.09823]
[1673597833732,0.00011236,1408.9,1408.8,7.09823]
[1673597834362,0.00011236,1408.9,1408.8,9.09823]
[1673597834578,0.00011236,1408.9,1408.8,7.09823]
[1673597834972,0.00011236,1408.9,1408.8,9.09823]
[1673597836375,0.00011236,1408.9,1408.8,7.09823]
[1673597836978,0.00011236,1408.9,1408.8,9.09823]
[1673597837362,0.00011236,1408.9,1408.8,7.09823]
[1673597838186,0.00011236,1408.9,1408.8,9.09823]
[1673597838347,0.00011236,1408.9,1408.8,7.09823]
[1673597838559,0.00011236,1408.9,1408.8,9.09823]
[1673597838975,0.00011236,1408.9,1408.8,12.70456272]
[1673597842081,0.00011236,1408.9,1408.8,10.70456272]
[1673597843082,0.00011236,1408.9,1408.8,12.70456272]
[1673597843620,0.00011236,1408.9,1408.8,22.70873292]
[1673597843831,0.52905838,1408.9,1408.8,20.70873292]
[1673597845917,0.52905838,1408.9,1408.8,27.80696292]
[1673597846123,0.52905838,1408.9,1408.8,29.56756204]
[1673597848242,0.52905838,1408.9,1408.8,13.61050292]
[1673597848457,0.52905838,1408.9,1408.8,12.46518171]
[1673597853058,0.52905838,1408.9,1408.8,26.66164171]
[1673597853501,0.52905838,1408.9,1408.8,19.56341171]
[1673597859581,0.52905838,1408.9,1408.8,20.62013546]
[1673597859836,0.52905838,1408.9,1408.8,19.56341171]
[1673597859995,0.52905838,1408.9,1408.8,23.41478024]
[1673597860211,0.52905838,1408.9,1408.8,25.45814105]
[1673597861209,0.52905838,1408.9,1408.8,23.41484971]
[1673597862259,0.52905838,1408.9,1408.8,25.46040866]
[1673597863883,0.52905838,1408.9,1408.8,23.41484971]
[1673597864098,0.52905838,1408.9,1408.8,19.56348118]
[1673597869871,0.52695364,1408.9,1408.8,19.56348118]
[1673597871457,0.52695364,1408.9,1408.8,20.62020493]
[1673597874955,0.52695364,1408.9,1408.8,22.20769395]
[1673597875174,0.52695364,1408.9,1408.8,20.62020493]
[1673597875389,0.52695364,1408.9,1408.8,23.97363042]
[1673597875765,0.52695364,1408.9,1408.8,26.97363042]
[1673597876329,0.52695364,1408.9,1408.8,29.01918937]
[1673597876494,0.52695364,1408.9,1408.8,37.70490839]
[1673597879810,0.52695364,1408.9,1408.8,36.11741937]
[1673597880389,0.52695364,1408.9,1408.8,37.70490839]
[1673597880631,0.52695364,1408.9,1408.8,36.11741937]
[1673597881385,0.52695364,1408.9,1408.8,37.70490839]
[1673597885154,0.52695364,1408.9,1408.8,41.00452414]
[1673597885481,0.52695364,1408.9,1408.8,44.18966703]
[1673597886850,0.52695364,1408.9,1408.8,41.53368714]
[1673597887367,0.52695364,1408.9,1408.8,44.18966703]
[1673597888205,0.52695364,1408.9,1408.8,41.53368714]
[1673597890786,0.5233211,1408.9,1408.8,41.53368714]
[1673597891325,0.5233211,1408.9,1408.8,43.12215405]
[1673597891536,0.20102083,1409.0,1408.9,0.29092785]
[1673597891758,0.20102083,1409.0,1408.9,42.72061936]
[1673597891973,0.20102083,1409.0,1408.9,44.76617831]
[1673597893844,0.20102083,1409.0,1408.9,46.35345771]
[1673597894298,0.20102083,1409.0,1408.9,44.76617831]
[1673597895035,0.20102083,1409.0,1408.9,46.35282453]
[1673597895613,0.20102083,1409.0,1408.9,44.2353919]
[1673597895936,0.20102083,1409.0,1408.9,39.8955596]
[1673597896770,0.20102083,1409.0,1408.9,45.2931579]
[1673597897985,0.20102083,1409.0,1408.9,43.70651168]
[1673597898140,0.20102083,1409.0,1408.9,45.2931579]
[1673597898519,0.20102083,1409.0,1408.9,39.36667938]
[1673597898827,0.20102083,1409.0,1408.9,43.70651168]
[1673597900078,0.20102083,1409.0,1408.9,43.41558383]
[1673597901028,0.20102083,1409.0,1408.9,39.07575153]
[1673597901336,0.20102083,1409.0,1408.9,43.41558383]
[1673597901505,0.20102083,1409.0,1408.9,37.07575153]
[1673597902032,0.20102083,1409.0,1408.9,41.41558383]
[1673597905780,0.20102083,1409.0,1408.9,43.00223005]
[1673597907938,0.20102083,1409.0,1408.9,38.66239775]
[1673597909408,0.20102083,1409.0,1408.9,37.07575153]
[1673597910087,0.20102083,1409.0,1408.9,38.66239775]
[1673597910669,0.20102083,1409.0,1408.9,43.00223005]
[1673597912408,0.20102083,1409.0,1408.9,38.66239775]
[1673597913316,0.20102083,1409.0,1408.9,37.60463175]
[1673597913717,0.20102083,1409.0,1408.9,41.94446405]
[1673597914355,0.19820631,1409.0,1408.9,41.94446405]
[1673597916343,0.19820631,1409.0,1408.9,41.94197651]
[1673597917338,0.19820631,1409.0,1408.9,44.05940914]
[1673597918584,0.19820631,1409.0,1408.9,40.35533029]
[1673597918792,0.19820631,1409.0,1408.9,41.94197651]
[1673597919121,0.19820631,1409.0,1408.9,44.05940914]
[1673597920537,0.19820631,1409.0,1408.9,39.71957684]
[1673597920906,0.19820631,1409.0,1408.9,44.05940914]
[1673597921278,0.19820631,1409.0,1408.9,39.71957684]
[1673597921583,0.19820631,1409.0,1408.9,44.05940914]
[1673597923578,0.19820631,1409.0,1408.9,42.47276292]
[1673597925752,0.19820631,1409.0,1408.9,45.12874281]
[1673597930220,0.13810743,1409.1,1409.0,2.10785432]
[1673597930529,0.13810743,1409.1,1409.0,36.22342404]
[1673597930718,0.13810743,1409.1,1409.0,39.67978102]
[1673597933165,0.08845559,1409.1,1409.0,39.67978102]
[1673597936842,0.08845559,1409.1,1409.0,46.67559321]
[1673597938177,0.08845559,1409.1,1409.0,39.67978102]
[1673597939359,0.08845559,1409.1,1409.0,39.68178102]
[1673597939580,0.08845559,1409.1,1409.0,39.67978102]
[1673597940584,0.08845559,1409.1,1409.0,39.68178102]
[1673597940827,0.08845559,1409.1,1409.0,39.67978102]
[1673597941564,0.08845559,1409.1,1409.0,41.26860183]
[1673597941877,0.08845559,1409.1,1409.0,37.14966587]
[1673597943966,0.08845559,1409.1,1409.0,20.26588241]
[1673597944175,0.08845559,1409.1,1409.0,16.63150265]
[1673597945942,0.08845559,1409.1,1409.0,18.22032346]
[1673597947965,0.08845559,1409.1,1409.0,16.63150265]
[1673597948164,0.08845559,1409.1,1409.0,9.53427265]
[1673597950082,0.08845559,1409.1,1409.0,9.53627265]
[1673597950296,0.08845559,1409.1,1409.0,8.4748755]
[1673597950529,9.09362935,1409.1,1409.0,8.4748755]
[1673597950663,16.28934935,1409.1,1409.0,1.86854278]
[1673597950874,16.28934935,1409.1,1409.0,1.86835638]
[1673597951087,17.88657418,1409.1,1409.0,0.10785432]
[1673597951553,18.48744291,1409.1,1409.0,0.10785432]
[1673597952386,16.89021808,1409.1,1409.0,0.10785432]
[1673597952600,18.48744291,1409.1,1409.0,0.10785432]
[1673597952786,16.89021808,1409.1,1409.0,0.10785432]
[1673597953236,16.28934935,1409.1,1409.0,0.10785432]
[1673597953443,23.38606935,1409.1,1409.0,0.10785432]
[1673597954451,2.09590935,1409.1,1409.0,0.10785432]
[1673597954663,0.08845559,1409.1,1409.0,3.71418704]
[1673597956979,0.08845559,1409.1,1409.0,15.57181108]
[1673597957189,0.08845559,1409.1,1409.0,22.66904108]
[1673597957419,0.08845559,1409.1,1409.0,29.76627108]
[1673597959815,0.56282228,1409.1,1409.0,29.76627108]
[1673597960178,0.56282228,1409.1,1409.0,33.92863188]
[1673597960389,0.56282228,1409.1,1409.0,35.97419083]
[1673597967389,0.56282228,1409.1,1409.0,28.87696083]
[1673597967736,0.56282228,1409.1,1409.0,22.66904108]
[1673597968950,15.82001543,1409.1,1409.0,0.10785432]
[1673597969192,15.82001543,1409.1,1409.0,0.10434021]
[1673597969193,8.82229543,1409.1,1409.0,0.10434021]
[1673597969402,12.65292578,1409.1,1409.0,0.10434021]
[1673597969614,13.29258839,1409.1,1409.0,0.10434021]
[1673597969847,20.38930839,1409.1,1409.0,0.10434021]
[1673597970985,27.48602839,1409.1,1409.0,0.10434021]
[1673597971403,26.84636578,1409.1,1409.0,0.10434021]
[1673597973485,27.48564526,1409.1,1409.0,0.10434021]
[1673597973700,26.84636578,1409.1,1409.0,0.10434021]
[1673597973926,27.48564867,1409.1,1409.0,0.10434021]
[1673597975066,27.48564907,1409.1,1409.0,0.10434021]
[1673597977049,31.20589064,1409.1,1409.0,0.10434021]
[1673597977263,0.05081419,1408.9,1408.5,0.006]
[1673597977503,22.35739921,1408.8,1408.5,1.76097651]
[1673597977831,24.04996803,1408.8,1408.4,1.05939715]
[1673597978010,7.09924,1408.6,1408.4,4.66572987]
[1673597978213,7.19824,1408.6,1408.4,1.05939715]
[1673597978442,14.29748,1408.6,1408.4,1.05939715]
[1673597979092,14.29748,1408.6,1408.3,1.06539715]
[1673597979253,8.529678,1408.5,1408.3,4.66572987]
[1673597979464,8.628678,1408.5,1408.4,1.76104038]
[1673597979672,15.728608,1408.5,1408.4,1.76104038]
[1673597980939,15.728608,1408.5,1408.3,4.73172987]
[1673597981150,15.728608,1408.5,1408.3,4.66572987]
[1673597981378,1.5728608,1408.4,1408.3,4.66572987]
[1673597981680,1.5728608,1408.4,1408.3,8.36746178]
[1673597981681,8.6731108,1408.4,1408.3,8.36746178]
[1673597981894,15.8723608,1408.4,1408.3,8.36746178]
[1673597982300,15.8723608,1408.4,1408.3,6.60633272]
[1673597983366,14.2995,1408.4,1408.3,6.60633272]
[1673597986201,7.19925,1408.4,1408.3,6.60633272]
[1673597987793,7.19625,1408.4,1408.3,6.60833272]
[1673597987979,7.19625,1408.4,1408.3,6.60633272]
[1673597987980,7.19925,1408.4,1408.3,6.60633272]
[1673597988816,23.50736491,1408.4,1408.3,3.0]
[1673597989074,23.50736491,1408.4,1408.2,0.04826621]
[1673597991647,16.40711491,1408.4,1408.2,0.04826621]
[1673597993229,23.50736491,1408.4,1408.2,0.04826621]
[1673597993933,2.20661491,1408.4,1408.2,0.04826621]
[1673597994087,22.828878,1408.5,1408.2,0.04826621]
[1673597994301,15.728768,1408.5,1408.2,3.04826621]
[1673597994502,15.728768,1408.5,1408.2,6.65459893]
[1673597994713,15.728768,1408.5,1408.2,8.65459893]
[1673597995076,15.728768,1408.5,1408.2,6.65459893]
[1673597995262,15.728768,1408.5,1408.2,13.75582893]
[1673597995662,14.29902,1408.5,1408.2,13.75582893]
[1673597997045,7.19893,1408.5,1408.2,13.75582893]
[1673597998726,14.29892,1408.5,1408.2,13.75582893]
[1673597999267,14.29576706,1408.5,1408.2,13.75582893]
[1673598000440,14.29576706,1408.5,1408.2,6.65459893]
[1673598000624,1.42957671,1408.4,1408.2,6.65459893]
[1673598000801,21.39600706,1408.5,1408.2,6.65459893]
[1673598005323,21.39600706,1408.5,1408.2,3.04826621]
[1673598005773,21.39600706,1408.5,1408.2,0.04826621]
[1673598014697,14.29576706,1408.5,1408.2,0.04826621]
[1673598014959,14.29576706,1408.5,1408.2,1.10766336]
[1673598015152,14.29576706,1408.5,1408.2,2.86893988]
[1673598015368,14.29576706,1408.5,1408.3,1.76127555]
[1673598015685,19.53888074,1408.5,1408.3,1.76127555]
[1673598015911,26.63912074,1408.5,1408.3,1.76127555]
[1673598016952,27.70149995,1408.5,1408.3,1.76127555]
[1673598017109,27.70149995,1408.5,1408.2,2.76248417]
[1673598017319,27.70149995,1408.5,1408.3,1.76127407]
[1673598017575,27.70149995,1408.5,1408.3,1.75740026]
[1673598018317,0.099,1408.5,1408.3,2.81679741]
[1673598018531,37.9467664,1408.6,1408.3,4.81679741]
[1673598018687,45.0463564,1408.6,1408.3,3.05939715]
[1673598018899,44.41151858,1408.6,1408.3,3.05939715]
[1673598019331,44.41151858,1408.6,1408.3,4.64821796]
[1673598020263,42.81794976,1408.6,1408.3,4.64821796]
[1673598020520,12.90497921,1408.6,1408.4,10.70644272]
[1673598020736,0.099,1408.6,1408.5,8.60633272]
[1673598020948,1.06237921,1408.7,1408.5,23.86522987]
[1673598021316,22.32814803,1408.8,1408.5,16.76547987]
[1673598021577,1.06237921,1408.7,1408.5,16.76547987]
[1673598021773,1.06237921,1408.7,1408.6,1.67654799]
[1673598022413,21.26576882,1408.8,1408.6,1.67654799]
[1673598022414,22.32814803,1408.8,1408.6,1.67654799]
[1673598022632,22.32814803,1408.8,1408.5,33.02115661]
[1673598022785,13.92304803,1408.8,1408.6,3.60633272]
[1673598022998,13.92304803,1408.8,1408.6,12.70547272]
[1673598023207,13.92304803,1408.8,1408.6,10.70547272]
[1673598024366,13.92304803,1408.8,1408.6,3.60633272]
[1673598024576,13.92304803,1408.8,1408.5,3.066]
[1673598024577,2.65594803,1408.7,1408.5,3.066]
[1673598024796,1.06237921,1408.6,1408.5,3.0]
[1673598025230,24.70164992,1408.7,1408.4,3.066]
[1673598025538,24.70164992,1408.7,1408.4,8.60633272]
[1673598025539,1.06237921,1408.6,1408.4,8.60633272]
[1673598025735,1.06237921,1408.6,1408.4,10.60629095]
[1673598026099,8.9097611,1408.7,1408.4,11.6636881]
[1673598026317,8.90894864,1408.7,1408.4,11.6636881]
[1673598027138,8.27479976,1408.7,1408.4,11.6636881]
[1673598027316,8.909001,1408.7,1408.4,11.6636881]
[1673598027525,8.909001,1408.7,1408.4,9.6636881]
[1673598029837,8.27479976,1408.7,1408.4,7.66572987]
[1673598030046,8.27479976,1408.7,1408.4,9.6636881]
[1673598030368,20.4109518,1408.7,1408.4,8.60429095]
[1673598030566,28.14429623,1408.7,1408.4,8.60429095]
[1673598030779,1.06237921,1408.6,1408.3,11.18505538]
[1673598031026,1.06237921,1408.6,1408.3,3.60633272]
[1673598031027,7.09975,1408.5,1408.3,3.60633272]
[1673598031243,7.19875,1408.5,1408.2,2.76248417]
[1673598031424,0.719875,1408.4,1408.2,0.04826621]
[1673598031667,14.920965,1408.4,1408.2,0.04826621]
[1673598031826,15.019965,1408.4,1408.2,0.04826621]
[1673598032044,22.120655,1408.4,1408.2,0.04826621]
[1673598032253,9.3128155,1408.3,1408.2,0.04826621]
[1673598032476,9.3128155,1408.3,1408.2,0.05026621]
[1673598032477,9.4088155,1408.3,1408.2,0.05026621]
[1673598032696,9.4118155,1408.3,1408.2,0.04826621]
[1673598033718,16.5125655,1408.3,1408.2,0.04826621]
[1673598034670,16.5095655,1408.3,1408.2,0.04826621]
[1673598034897,16.5125655,1408.3,1408.2,0.04826621]
[1673598037187,23.6133155,1408.3,1408.2,0.04826621]
[1673598039977,2.3110655,1408.3,1408.2,0.04826621]
[1673598040135,8.51975,1408.3,1408.2,1.80965719]
[1673598040556,8.61875,1408.3,1408.2,1.80965719]
[1673598040854,8.61875,1408.3,1408.2,1.80964395]
[1673598042170,1.518,1408.3,1408.2,1.80964395]
[1673598042433,1.419,1408.3,1408.2,0.04826621]
[1673598042622,5.01331755,1408.3,1408.2,0.04826621]
[1673598042834,5.11231755,1408.3,1408.2,0.04826621]
[1673598043008,12.21306755,1408.3,1408.2,0.04826621]
[1673598046937,12.85981513,1408.3,1408.2,0.04826621]
[1673598051648,9.26549758,1408.3,1408.2,0.04826621]
[1673598053232,16.36624758,1408.3,1408.2,0.04826621]
[1673598055990,16.36324758,1408.3,1408.2,0.04826621]
[1673598056302,16.36624758,1408.3,1408.2,0.04826621]
[1673598058374,7.84649758,1408.3,1408.2,0.04826621]
[1673598058617,0.74574758,1408.3,1408.2,0.04826621]
[1673598058929,0.74574758,1408.3,1408.2,1.80959946]
[1673598058930,0.64674758,1408.3,1408.2,1.80959946]
[1673598060193,0.64674758,1408.3,1408.2,0.04826621]
[1673598060194,7.74749758,1408.3,1408.2,0.04826621]
[1673598060573,7.84649758,1408.3,1408.2,0.04826621]
[1673598060993,14.94724758,1408.3,1408.2,0.04826621]
[1673598061451,14.94724758,1408.3,1408.2,1.04826621]
[1673598064649,7.84649758,1408.3,1408.2,1.04826621]
[1673598067235,7.84649758,1408.3,1408.2,2.809706]
[1673598067764,0.74574758,1408.3,1408.2,6.41603872]
[1673598067986,0.64674758,1408.3,1408.2,7.47537705]
[1673598068379,0.64674758,1408.3,1408.2,10.47537705]
[1673598069163,0.64674758,1408.3,1408.2,11.5347742]
[1673598069324,0.64674758,1408.3,1408.2,10.47537705]
[1673598071157,0.64674758,1408.3,1408.2,11.5347742]
[1673598072094,0.64674758,1408.3,1408.2,10.47543587]
[1673598072315,15.91062679,1408.3,1408.2,5.809706]
[1673598072481,16.00962679,1408.3,1408.2,5.809706]
[1673598074530,16.00662679,1408.3,1408.2,5.811706]
[1673598074684,23.11037679,1408.3,1408.2,5.809706]
[1673598081040,16.00962679,1408.3,1408.2,5.809706]
[1673598084909,23.11037679,1408.3,1408.2,5.809706]
[1673598085508,16.00962679,1408.3,1408.2,5.809706]
[1673598086281,23.11037679,1408.3,1408.2,5.809706]
[1673598087116,16.00962679,1408.3,1408.2,5.809706]
[1673598088079,23.11037679,1408.3,1408.2,5.809706]
[1673598088239,28.09684601,1408.3,1408.2,4.04826621]
[1673598088450,27.0344668,1408.3,1408.2,1.04826621]
[1673598088660,28.09873471,1408.3,1408.2,1.04826621]
[1673598093864,16.01151549,1408.3,1408.2,1.04826621]
[1673598094037,14.94724758,1408.3,1408.2,2.80976856]
[1673598094255,14.94724758,1408.3,1408.2,5.80976856]
[1673598094462,16.01151549,1408.3,1408.2,5.80976856]
[1673598099543,16.01151549,1408.3,1408.2,5.85976856]
[1673598100066,23.11226549,1408.3,1408.2,5.85976856]
[1673598100599,16.01151549,1408.3,1408.2,5.85976856]
[1673598101172,1.81001549,1408.3,1408.2,9.46610128]
[1673598101534,0.64674758,1408.3,1408.2,15.87967532]
[1673598101696,0.64674758,1408.3,1408.2,13.12866383]
[1673598102583,0.64674758,1408.3,1408.2,11.53984302]
[1673598108437,21.94899758,1408.3,1408.2,6.86916571]
[1673598108665,21.94899758,1408.3,1408.2,5.80976856]
[1673598108666,22.04799758,1408.3,1408.2,5.80976856]
[1673598110245,23.11226549,1408.3,1408.2,5.80976856]
[1673598110439,23.11226549,1408.3,1408.2,4.04826621]
[1673598111051,23.11226549,1408.3,1408.2,1.04826621]
[1673598111413,23.11226549,1408.3,1408.2,4.04826621]
[1673598112007,23.11226549,1408.3,1408.2,1.04826621]
[1673598112231,26.29287392,1408.3,1408.2,1.04826621]
[1673598112444,28.94693326,1408.3,1408.2,1.04614628]
[1673598113045,29.58113227,1408.3,1408.2,1.04614628]
[1673598114835,27.45637384,1408.3,1408.2,1.04614628]
[1673598124252,28.5195111,1408.3,1408.2,1.04614628]
[1673598125262,28.51946097,1408.3,1408.2,1.04614628]
[1673598126723,27.45637384,1408.3,1408.2,1.04614628]
[1673598126933,28.51940122,1408.3,1408.2,1.04614628]
[1673598127178,27.45637384,1408.3,1408.2,1.04614628]
[1673598128022,28.51940146,1408.3,1408.2,1.04614628]
[1673598130333,29.58113227,1408.3,1408.2,1.04614628]
[1673598132916,28.51702642,1408.3,1408.2,1.04614628]
[1673598133181,34.48321542,1408.3,1408.2,1.04614628]
[1673598133862,36.60901217,1408.3,1408.2,1.04614628]
[1673598134076,36.60901155,1408.3,1408.2,1.04614628]
[1673598136173,30.64282255,1408.3,1408.2,1.04372567]
[1673598137019,27.98860115,1408.3,1408.2,1.04372567]
[1673598140001,27.98560115,1408.3,1408.2,1.04372567]
[1673598140324,27.98860115,1408.3,1408.2,1.04372567]
[1673598142059,28.5183819,1408.3,1408.2,1.04372567]
[1673598142272,25.3377811,1408.3,1408.2,1.04372567]
[1673598142694,23.74446228,1408.3,1408.2,1.04372567]
[1673598142898,25.3377811,1408.3,1408.2,1.04372567]
[1673598143114,23.74446228,1408.3,1408.2,1.04372567]
[1673598143641,23.11026327,1408.3,1408.2,1.04372567]
[1673598143958,7.84649758,1408.3,1408.2,4.7596257]
[1673598144283,0.74574758,1408.3,1408.2,4.7596257]
[1673598144630,0.64674758,1408.3,1408.2,4.7596257]
[1673598145214,0.64674758,1408.3,1408.2,24.02143506]
[1673598145420,0.64674758,1408.3,1408.2,31.83220833]
[1673598145663,0.64674758,1408.3,1408.2,33.83016656]
[1673598145995,0.64674758,1408.3,1408.2,13.51890384]
[1673598146259,0.64674758,1408.3,1408.2,11.52094561]
[1673598146427,0.64674758,1408.3,1408.2,18.62220561]
[1673598148070,0.64674758,1408.3,1408.2,25.72346561]
[1673598148699,0.64674758,1408.3,1408.2,18.62220561]
[1673598148917,0.64674758,1408.3,1408.2,11.52094561]
[1673598150171,0.64674758,1408.3,1408.2,9.52094561]
[1673598150502,0.64674758,1408.3,1408.2,9.52101408]
[1673598150685,0.64674758,1408.3,1408.2,9.5209852]
[1673598150895,0.64674758,1408.3,1408.2,9.52098656]
[1673598151956,0.64674758,1408.3,1408.2,7.7596257]
[1673598152362,0.64674758,1408.3,1408.2,9.52099436]
[1673598152815,0.64674758,1408.3,1408.2,9.5209951]
[1673598153005,0.64674758,1408.3,1408.2,9.52099132]
[1673598153994,0.64674758,1408.3,1408.2,7.7596257]
[1673598154733,0.64674758,1408.3,1408.2,9.52098548]
[1673598154945,0.64674758,1408.3,1408.2,7.7596257]
[1673598155640,7.74749758,1408.3,1408.2,4.04372567]
[1673598155865,14.94724758,1408.3,1408.2,1.04372567]
[1673598156058,22.04799758,1408.3,1408.2,1.04372567]
[1673598156267,25.30128517,1408.3,1408.2,1.04372567]
[1673598156476,26.36355086,1408.3,1408.2,1.04372567]
[1673598157093,27.95686968,1408.3,1408.2,1.04372567]
[1673598157297,26.36355086,1408.3,1408.2,1.04372567]
[1673598157930,27.95686968,1408.3,1408.2,1.04372567]
[1673598159119,27.95686968,1408.3,1408.2,1.03980342]
[1673598160920,26.89460399,1408.3,1408.2,1.03980342]
[1673598161502,29.02040012,1408.3,1408.2,1.03980342]
[1673598165607,27.95652376,1408.3,1408.2,1.03980342]
[1673598167041,26.36320494,1408.3,1408.2,1.03980342]
[1673598167194,27.95652376,1408.3,1408.2,1.03980342]
[1673598168877,26.36320494,1408.3,1408.2,1.03980342]
[1673598169342,27.95652376,1408.3,1408.2,1.03980342]
[1673598171185,27.95652376,1408.3,1408.2,1.03734479]
[1673598177915,26.89460399,1408.3,1408.2,1.03734479]
[1673598180431,29.02040012,1408.3,1408.2,1.03734479]
[1673598180641,26.89460399,1408.3,1408.2,1.03734479]
[1673598180853,29.02040012,1408.3,1408.2,1.03734479]
[1673598182153,26.89460399,1408.3,1408.2,1.03734479]
[1673598182320,29.02040012,1408.3,1408.2,1.03734479]
[1673598186155,27.4270813,1408.3,1408.2,1.03734479]
[1673598187403,29.02045317,1408.3,1408.2,1.03734479]
[1673598187590,23.11020775,1408.3,1408.2,1.03734479]
[1673598188249,16.00945775,1408.3,1408.2,1.03734479]
[1673598188462,8.90870775,1408.3,1408.2,1.03734479]
[1673598188672,16.00945775,1408.3,1408.2,1.03734479]
[1673598189940,8.90870775,1408.3,1408.2,1.03734479]
[1673598191059,7.84649758,1408.3,1408.2,1.03734479]
[1673598191561,8.90870775,1408.3,1408.2,1.03734479]
[1673598191833,0.74574758,1408.3,1408.2,1.03734479]
[1673598192045,1.70895775,1408.3,1408.2,4.64367751]
[1673598197801,8.80970775,1408.3,1408.2,4.64367751]
[1673598198010,8.90870775,1408.3,1408.2,4.64367751]
[1673598198352,8.90870775,1408.3,1408.2,1.03734479]
[1673598198931,0.74574758,1408.3,1408.2,6.81403827]
[1673598199185,0.64674758,1408.3,1408.2,6.81403827]
[1673598199562,0.64416987,1408.3,1408.2,17.92278099]
[1673598199773,0.64416987,1408.3,1408.2,39.22656099]
[1673598200019,0.64416987,1408.3,1408.2,41.31032115]
[1673598205685,0.64416987,1408.3,1408.2,40.250924]
[1673598207111,0.64416987,1408.3,1408.2,39.54141073]
[1673598207421,2.75458204,1408.7,1408.3,2.38045036]
[1673598207422,0.099,1408.7,1408.3,2.38045036]
[1673598207582,1.06221017,1408.8,1408.4,7.93094564]
[1673598207786,1.06221017,1408.8,1408.5,6.60633272]
[1673598208002,1.06221017,1408.8,1408.6,3.60633272]
[1673598208351,1.06221017,1408.8,1408.7,3.0]
[1673598209053,37.5350402,1408.9,1408.7,3.0]
[1673598209271,21.18741017,1408.9,1408.7,6.60633272]
[1673598209787,12.46611017,1408.9,1408.7,6.60633272]
[1673598211739,11.4039,1408.9,1408.7,6.60633272]
[1673598212053,11.4039,1408.9,1408.7,9.44356517]
[1673598212417,0.099,1408.9,1408.7,9.44356517]
[1673598212624,33.13194204,1409.0,1408.7,9.44356517]
[1673598213304,33.68970729,1409.0,1408.7,9.44356517]
[1673598213523,12.39724729,1409.0,1408.8,3.60633272]
[1673598213713,18.93672204,1409.0,1408.8,3.60633272]
[1673598213889,19.49450211,1409.0,1408.8,3.60633272]
[1673598214147,12.39726211,1409.0,1408.8,3.60633272]
[1673598214353,10.24611017,1409.0,1408.8,5.97703324]
[1673598214558,9.1839,1409.0,1408.8,5.97703324]
[1673598215354,10.24611017,1409.0,1408.8,5.97703324]
[1673598218393,17.34339017,1409.0,1408.8,5.97703324]
[1673598218606,17.90062907,1409.0,1408.8,3.60633272]
[1673598221954,17.90062907,1409.0,1408.7,5.90323245]
[1673598222163,33.68851094,1409.0,1408.7,6.60633272]
[1673598222377,39.71271562,1409.0,1408.7,6.60633272]
[1673598223290,15.25818017,1408.9,1408.7,6.60633272]
[1673598223496,15.35718017,1408.9,1408.7,6.60633272]
[1673598224647,15.91446265,1408.9,1408.7,6.60633272]
[1673598226282,15.35718017,1408.9,1408.7,6.60633272]
[1673598226639,15.91479274,1408.9,1408.7,6.60633272]
[1673598227719,15.91479274,1408.9,1408.8,0.0460339]
[1673598228558,24.60628461,1408.9,1408.8,0.0460339]
[1673598228903,28.84603804,1408.9,1408.8,0.0460339]
[1673598229060,17.50816461,1408.9,1408.8,0.0460339]
[1673598229264,1.71884549,1408.9,1408.8,0.0460339]
[1673598229475,8.15994017,1408.9,1408.8,0.0460339]
[1673598229727,8.15994017,1408.9,1408.6,12.09901]
[1673598229728,16.95004204,1408.9,1408.6,12.09901]
[1673598229935,24.04777204,1408.9,1408.6,8.60633272]
[1673598230160,24.60540736,1408.9,1408.6,8.60633272]
[1673598230365,1.06221017,1408.8,1408.6,8.60633272]
[1673598232316,1.06221017,1408.8,1408.6,11.80344999]
[1673598233465,1.06221017,1408.8,1408.6,18.90267999]
[1673598234760,1.06221017,1408.8,1408.6,16.90267999]
[1673598234974,1.06221017,1408.8,1408.7,3.60633272]
[1673598235183,1.06221017,1408.8,1408.7,6.60633272]
[1673598236413,2.65558204,1408.8,1408.7,6.60633272]
[1673598237621,2.65558204,1408.8,1408.7,6.60833272]
[1673598237826,2.65558204,1408.8,1408.7,6.60633272]
[1673598238535,3.719168,1408.8,1408.7,6.60633272]
[1673598242568,2.12579613,1408.8,1408.7,6.60633272]
[1673598243244,3.72097039,1408.8,1408.7,6.60633272]
[1673598243610,1.59517426,1408.8,1408.7,7.98348899]
[1673598244347,1.59517426,1408.8,1408.7,6.60633272]
[1673598244944,3.72097039,1408.8,1408.7,6.60633272]
[1673598245134,1.59517426,1408.8,1408.7,6.60633272]
[1673598245580,2.65878719,1408.8,1408.7,6.60633272]
[1673598246002,2.65878719,1408.8,1408.7,8.60633272]
[1673598246346,2.65878719,1408.8,1408.7,11.80329599]
[1673598246728,1.59517426,1408.8,1408.7,11.80329599]
[1673598246925,1.06392043,1408.8,1408.7,34.86036365]
[1673598247133,2.65909469,1408.9,1408.7,37.99353957]
[1673598247350,2.65909469,1408.9,1408.8,17.50391668]
[1673598247592,0.69532055,1408.9,1408.8,10.40568668]
[1673598247794,0.69532055,1408.9,1408.8,13.70456272]
[1673598250290,0.69532055,1408.9,1408.8,6.60633272]
[1673598250539,0.69532055,1408.9,1408.8,3.0]
[1673598250540,7.79305055,1408.9,1408.8,3.0]
[1673598250817,7.89205055,1408.9,1408.7,3.066]
[1673598251055,7.89205055,1408.9,1408.7,9.82961572]